bitfinex-derivatives/quotes_ETHF0:USTF0_20250212
["timestamp","ask_amount","ask_price","bid_price","bid_amount"]
[1739320523056,0.0057402,2609.8,2609.5,0.5709]
[1739320523262,4.12877765,2609.7,2609.5,0.5709]
[1739320523763,4.12877765,2609.7,2609.3,0.0057402]
[1739320524847,1.764,2609.6,2609.3,0.0057402]
[1739320525046,2.9211,2609.6,2609.3,0.0057402]
[1739320525247,6.9545377,2609.6,2609.3,0.0057402]
[1739320525558,3.2078,2609.4,2609.3,0.0057402]
[1739320528253,7.29806444,2609.4,2609.3,0.0057402]
[1739320528648,13.36375527,2609.4,2608.7,3.2078]
[1739320528854,3.2078,2609.1,2608.7,3.2078]
[1739320529151,2.353,2609.0,2608.7,3.2078]
[1739320529451,6.51180726,2609.0,2608.7,3.2078]
[1739320531559,6.51180726,2609.0,2608.6,0.0057402]
[1739320531765,10.54524496,2609.0,2608.6,0.0057402]
[1739320531964,0.5866,2608.9,2608.6,0.0057402]
[1739320532462,4.21667435,2608.8,2608.6,0.0057402]
[1739320532865,7.42447435,2608.8,2608.6,0.0057402]
[1739320533559,8.00637435,2608.8,2608.6,0.0057402]
[1739320535361,7.42447435,2608.8,2608.6,0.0057402]
[1739320536161,4.21667435,2608.8,2608.6,0.0057402]
[1739320536565,0.592,2609.0,2608.6,0.0057402]
[1739320537767,4.32100536,2608.9,2608.6,0.0057402]
[1739320537974,3.2078,2608.8,2608.6,0.0057402]
[1739320538572,4.21612676,2608.7,2608.6,0.0057402]
[1739320539570,5.41552676,2608.7,2608.6,0.0057402]
[1739320543072,4.82682676,2608.7,2608.6,0.0057402]
[1739320543273,4.21612676,2608.7,2608.6,0.0057402]
[1739320543474,1.752,2609.0,2608.6,0.0057402]
[1739320544476,1.752,2609.0,2608.6,0.5771402]
[1739320545275,4.2995079,2608.9,2608.6,0.5771402]
[1739320545475,4.2995079,2608.9,2608.6,0.0057402]
[1739320545775,3.2078,2608.8,2608.6,0.0057402]
[1739320545974,3.7958,2608.8,2608.6,0.0057402]
[1739320546185,4.24742073,2608.7,2608.6,0.0057402]
[1739320547276,1.752,2609.0,2608.6,0.0057402]
[1739320547680,4.44649,2608.9,2608.6,0.0057402]
[1739320548385,1.752,2609.0,2608.6,0.0057402]
[1739320549181,3.2078,2609.1,2608.6,0.0057402]
[1739320549486,2.317,2609.2,2608.6,0.0057402]
[1739320549487,1.75,2609.2,2608.7,3.2078]
[1739320549682,1.75,2609.2,2608.8,0.5899]
[1739320550180,1.75,2609.2,2608.9,0.6121]
[1739320552383,3.2078,2609.4,2608.9,0.6121]
[1739320552581,4.9548,2609.4,2608.9,0.6121]
[1739320552884,4.43056429,2609.3,2608.9,0.6121]
[1739320554687,4.43056429,2609.3,2608.8,0.5899]
[1739320555179,6.17556429,2609.3,2608.8,0.5899]
[1739320556485,6.17556429,2609.3,2608.7,3.2078]
[1739320557786,6.17556429,2609.3,2608.6,0.0057402]
[1739320557988,6.17556429,2609.3,2608.6,3.2135402]
[1739320558591,6.94210429,2609.3,2608.6,3.2135402]
[1739320558893,3.2078,2609.1,2608.6,0.0057402]
[1739320559087,1.1982,2609.0,2608.6,0.0057402]
[1739320559285,6.1960657,2609.0,2608.6,0.0057402]
[1739320559792,5.5860657,2609.0,2608.6,0.0057402]
[1739320561391,0.6093,2608.9,2608.6,0.0057402]
[1739320561782,4.34165782,2608.8,2608.6,0.0057402]
[1739320565087,4.40228552,2608.9,2608.6,0.0057402]
[1739320567287,1.1557,2609.0,2608.6,0.0057402]
[1739320567885,4.31672711,2608.9,2608.6,0.0057402]
[1739320568891,1.1557,2609.0,2608.6,0.0057402]
[1739320569092,3.2078,2609.1,2608.7,3.15315526]
[1739320569390,3.2078,2609.1,2608.8,0.5711]
[1739320569788,3.99644919,2609.0,2608.6,0.0057402]
[1739320569984,5.13794919,2609.0,2608.6,0.0057402]
[1739320579893,3.2078,2609.1,2608.7,3.15315526]
[1739320580093,3.2078,2609.1,2608.8,0.5822]
[1739320580295,0.5718,2609.3,2608.9,3.2078]
[1739320580495,0.5718,2609.3,2608.8,0.5822]
[1739320581802,4.00849464,2609.2,2608.8,0.5822]
[1739320582504,0.5718,2609.3,2608.9,3.2078]
[1739320582898,0.5718,2609.3,2608.8,0.5822]
[1739320583413,0.6069,2609.4,2608.9,3.2078]
[1739320583600,3.2078,2609.5,2608.9,3.2078]
[1739320584298,0.5603,2609.7,2609.2,3.2078]
[1739320584499,4.9515402,2609.8,2609.3,4.31255526]
[1739320585501,4.19382398,2609.7,2609.3,1.1594]
[1739320585904,4.19382398,2609.7,2609.3,0.5924]
[1739320587299,3.2135402,2609.8,2609.3,3.74555526]
[1739320588804,4.20731292,2609.7,2609.3,0.5924]
[1739320589006,4.20731292,2609.7,2609.2,3.2078]
[1739320597206,3.2135402,2609.8,2609.2,3.2078]
[1739320597407,4.20168053,2609.7,2609.2,3.2078]
[1739320601012,3.2078,2609.5,2608.6,3.2135402]
[1739320601321,5.57154185,2609.4,2608.7,0.597]
[1739320601618,3.2078,2609.2,2608.6,0.0057402]
[1739320601913,4.42314185,2609.1,2608.6,0.0057402]
[1739320603330,3.2078,2609.3,2608.8,3.15315526]
[1739320603518,3.4827,2609.4,2609.1,3.2078]
[1739320603820,3.4827,2609.4,2608.9,1.1511]
[1739320604018,4.01368799,2609.3,2608.9,1.1511]
[1739320605313,1.1863,2609.4,2609.2,3.2078]
[1739320605523,1.738,2609.6,2609.2,3.2078]
[1739320605714,1.738,2609.6,2609.1,3.15315526]
[1739320605915,4.08491226,2609.5,2609.1,3.15315526]
[1739320606511,1.1913,2609.7,2609.2,3.2078]
[1739320606717,0.0057402,2609.8,2609.2,3.2078]
[1739320607217,0.0057402,2609.8,2609.5,3.2078]
[1739320609127,4.21155117,2609.7,2609.1,3.15315526]
[1739320609424,4.21155117,2609.7,2609.0,3.2078]
[1739320610718,3.2078,2609.5,2609.0,3.2078]
[1739320610916,1.1773,2609.4,2609.0,3.2078]
[1739320611116,6.08477364,2609.4,2609.0,3.2078]
[1739320611322,3.2078,2609.2,2608.7,1.1529]
[1739320611724,4.26587155,2609.1,2608.7,0.5896]
[1739320612022,4.26587155,2609.1,2608.6,0.0057402]
[1739320614630,3.2078,2608.9,2608.6,0.0057402]
[1739320614832,1.1961,2608.8,2608.6,0.0057402]
[1739320615022,5.84439499,2608.8,2608.6,0.0057402]
[1739320619927,7.58239499,2608.8,2608.6,0.0057402]
[1739320621536,6.97569499,2608.8,2608.6,0.0057402]
[1739320625035,4.9458,2609.2,2608.6,0.0057402]
[1739320625331,4.9458,2609.2,2608.8,3.15315526]
[1739320625332,3.2078,2609.2,2608.8,3.15315526]
[1739320625529,3.2078,2609.2,2608.9,0.5576]
[1739320626329,3.2078,2609.7,2608.9,0.5576]
[1739320626532,6.0778,2609.7,2609.0,0.5713]
[1739320626839,10.35195181,2609.7,2609.0,0.5713]
[1739320627336,10.35195181,2609.7,2608.9,0.5576]
[1739320627531,3.2078,2609.4,2608.7,3.2078]
[1739320627733,0.5871,2609.3,2608.6,0.5770402]
[1739320628039,3.2078,2609.1,2608.6,0.0057402]
[1739320628335,5.56024223,2609.0,2608.6,0.0057402]
[1739320630736,3.2078,2608.8,2608.6,0.0057402]
[1739320631138,4.23452079,2608.7,2608.6,0.0057402]
[1739320632236,4.79272079,2608.7,2608.6,0.0057402]
[1739320636935,3.2078,2608.8,2608.6,0.0057402]
[1739320636936,4.9458,2608.8,2608.6,0.0057402]
[1739320637151,0.6078,2608.7,2608.6,0.0057402]
[1739320637439,4.81077762,2608.7,2608.6,0.0057402]
[1739320640037,8.01857762,2608.7,2608.6,0.0057402]
[1739320641240,8.01857762,2608.7,2608.1,3.2078]
[1739320641543,3.15315526,2608.6,2608.1,3.2078]
[1739320642150,0.556,2608.5,2608.1,3.2078]
[1739320642440,0.5726,2608.4,2608.1,0.0057402]
[1739320642741,4.02116711,2608.3,2608.1,0.0057402]
[1739320645144,1.738,2608.2,2608.1,0.0057402]
[1739320645649,6.00894403,2608.2,2608.1,0.0057402]
[1739320649338,4.27094403,2608.2,2608.1,0.0057402]
[1739320649547,3.7804,2608.4,2608.1,0.0057402]
[1739320651543,0.5617402,2608.5,2608.1,3.2135402]
[1739320651745,0.5617402,2608.5,2608.2,3.15315526]
[1739320651746,0.0057402,2608.5,2608.2,3.15315526]
[1739320652051,0.0057402,2608.5,2608.4,3.2078]
[1739320652250,0.0057402,2608.5,2608.3,0.5639]
[1739320652453,0.0057402,2608.5,2608.1,3.2135402]
[1739320652752,3.15889546,2608.5,2608.1,3.2135402]
[1739320652946,1.1655,2608.4,2608.1,3.2135402]
[1739320653157,1.727,2608.4,2608.1,0.0057402]
[1739320653455,4.41261269,2608.3,2608.1,0.0057402]
[1739320655448,3.15315526,2608.2,2608.1,0.0057402]
[1739320655853,10.40512574,2608.2,2607.7,3.8111]
[1739320656054,1.738,2608.1,2607.7,3.8111]
[1739320656457,4.37342545,2608.0,2607.7,3.8111]
[1739320657553,1.738,2608.2,2607.7,3.8111]
[1739320657753,4.26081552,2608.1,2607.7,3.8111]
[1739320658054,1.738,2608.2,2607.7,3.8111]
[1739320658255,4.26081552,2608.1,2607.7,3.8111]
[1739320661462,7.46861552,2608.1,2607.7,3.8111]
[1739320661765,7.46861552,2608.1,2607.7,3.2078]
[1739320667867,10.62177078,2608.1,2607.6,0.00386495]
[1739320673173,11.38866078,2608.1,2607.6,0.00386495]
[1739320673772,10.62177078,2608.1,2607.6,0.00386495]
[1739320674759,0.06572856,2608.0,2607.6,0.00386495]
[1739320675073,10.62177078,2608.1,2607.6,0.00386495]
[1739320675074,4.05712846,2607.9,2607.6,0.00386495]
[1739320675274,5.80962846,2607.9,2607.6,0.00386495]
[1739320675474,1.7525,2607.9,2607.6,0.00386495]
[1739320675671,4.38480692,2607.8,2607.6,0.00386495]
[1739320678970,7.53796218,2607.8,2607.6,0.00386495]
[1739320679283,10.74576218,2607.8,2607.6,0.00386495]
[1739320680476,7.59260692,2607.8,2607.6,0.00386495]
[1739320683389,3.2078,2608.4,2607.7,3.2078]
[1739320683582,3.2078,2608.4,2608.1,3.15315526]
[1739320684086,3.2078,2608.4,2608.0,3.2078]
[1739320684774,3.2078,2608.4,2607.9,3.15315526]
[1739320685380,3.99735214,2608.3,2607.8,1.1952]
[1739320685579,3.99735214,2608.3,2607.6,3.15702021]
[1739320685580,3.2078,2608.1,2607.6,0.00386495]
[1739320685776,3.73315526,2608.0,2607.6,0.00386495]
[1739320685977,3.2078,2607.7,2607.6,0.00386495]
[1739320686684,7.4920852,2607.7,2607.6,0.00386495]
[1739320686978,7.4920852,2607.7,2607.6,0.00016285]
[1739320687191,8.0701852,2607.7,2607.6,0.00016285]
[1739320687482,8.90292429,2607.7,2607.6,0.00016285]
[1739320687678,8.13592429,2607.7,2606.8,3.2078]
[1739320687877,3.15315526,2607.2,2606.8,3.2078]
[1739320688077,0.5688,2607.1,2606.8,3.2078]
[1739320688278,4.93848205,2607.1,2606.8,3.2078]
[1739320690983,0.6045,2607.0,2606.4,4.3972]
[1739320691375,4.2525082,2606.9,2606.4,4.3972]
[1739320693188,0.00575164,2607.0,2606.7,3.2078]
[1739320693385,0.00575164,2607.0,2606.9,3.15315526]
[1739320693779,0.00575164,2607.0,2606.9,9.15315526]
[1739320694181,0.00575164,2607.0,2606.8,0.5833]
[1739320694885,4.28848194,2606.9,2606.4,3.8202]
[1739320695087,4.28848194,2606.9,2606.5,0.5764]
[1739320695288,0.5965,2606.8,2606.5,0.5764]
[1739320695683,4.22090753,2606.7,2606.5,0.5764]
[1739320696989,4.22090753,2606.7,2606.4,3.2078]
[1739320698383,3.15315526,2606.6,2606.1,1.1439]
[1739320698584,4.29555526,2606.6,2606.1,1.1439]
[1739320698786,4.35435963,2606.5,2606.1,1.1439]
[1739320699281,0.579,2606.4,2606.1,1.1439]
[1739320699686,3.2078,2606.7,2606.3,3.15315526]
[1739320699981,4.1946226,2606.6,2606.4,3.2078]
[1739320700387,4.1946226,2606.7,2606.5,0.5538]
[1739320700991,1.738,2606.8,2606.5,0.5538]
[1739320701189,4.13021696,2606.7,2606.5,0.5538]
[1739320702191,4.9458,2607.1,2606.6,3.15315526]
[1739320702391,4.9458,2607.1,2606.7,0.5929]
[1739320702688,3.2078,2607.1,2606.7,0.5929]
[1739320703087,1.738,2607.2,2606.9,3.15315526]
[1739320703290,1.738,2607.2,2606.9,6.36095526]
[1739320705189,0.6114,2607.1,2606.9,3.2078]
[1739320705395,0.6114,2607.1,2606.7,0.5929]
[1739320708188,1.738,2607.2,2606.9,3.15315526]
[1739320708690,1.738,2607.2,2606.9,3.75695526]
[1739320708892,2.3126,2607.4,2606.9,3.75695526]
[1739320709391,2.3126,2607.4,2606.9,0.6038]
[1739320711292,2.3126,2607.4,2606.9,3.75695526]
[1739320711792,1.738,2607.4,2606.9,3.75695526]
[1739320713695,3.7976,2607.6,2606.9,9.75695526]
[1739320713901,5.5356,2607.6,2606.9,9.75695526]
[1739320714091,5.5356,2607.6,2607.2,3.15315526]
[1739320714295,3.2078,2607.6,2607.3,0.5925]
[1739320714488,0.5648,2607.8,2607.5,6.36095526]
[1739320714700,3.2078,2607.9,2607.5,6.36095526]
[1739320715786,3.7964,2607.9,2607.5,6.36095526]
[1739320717201,3.7964,2607.9,2607.5,3.2078]
[1739320717503,4.35905169,2607.8,2607.5,3.2078]
[1739320720593,0.607,2607.7,2607.4,0.00575164]
[1739320721198,4.31274117,2607.6,2607.4,0.00575164]
[1739320721701,4.31274117,2607.6,2607.3,0.00344992]
[1739320721702,3.7714,2607.5,2607.3,0.00344992]
[1739320721898,1.737,2607.4,2607.3,0.00344992]
[1739320722204,6.14038562,2607.4,2607.3,0.00344992]
[1739320724503,4.40338562,2607.4,2607.3,0.00344992]
[1739320724895,4.98998562,2607.4,2607.3,0.00344992]
[1739320726099,0.5866,2607.4,2607.3,0.00344992]
[1739320727306,4.6970094,2607.4,2607.3,0.00344992]
[1739320731202,0.5866,2607.4,2607.3,0.00344992]
[1739320733304,4.72703706,2607.4,2607.3,0.00344992]
[1739320737309,7.93483706,2607.4,2607.3,0.00344992]
[1739320738403,0.76719,2607.1,2606.6,3.2078]
[1739320738609,6.36095526,2606.8,2606.1,0.5629]
[1739320738811,0.5546,2606.7,2606.1,1.1677]
[1739320739012,4.8679966,2606.7,2606.1,1.1677]
[1739320739214,4.87374824,2606.7,2606.1,1.1677]
[1739320741812,3.2078,2606.5,2605.9,3.2078]
[1739320742012,2.2939,2606.4,2605.9,3.2078]
[1739320742216,6.57202433,2606.4,2605.9,3.2078]
[1739320743309,0.5615,2606.6,2606.3,3.2078]
[1739320743512,0.5615,2606.6,2606.4,0.5919]
[1739320743715,4.30205277,2606.5,2606.4,0.5919]
[1739320743918,0.00575164,2606.7,2606.4,3.7997]
[1739320744109,0.00575164,2606.7,2606.6,3.15315526]
[1739320744421,1.1319,2607.5,2606.6,3.15315526]
[1739320744712,5.175637,2607.5,2607.1,3.15315526]
[1739320744906,5.175637,2607.5,2606.9,3.2078]
[1739320745112,1.1319,2607.5,2607.0,0.5919]
[1739320745312,4.043737,2607.4,2606.9,3.2078]
[1739320745619,4.043737,2607.4,2607.0,0.00575164]
[1739320745915,3.2078,2607.2,2607.0,0.00575164]
[1739320746308,4.19287106,2607.1,2607.0,0.00575164]
[1739320746711,4.43336352,2607.3,2607.0,0.00575164]
[1739320747014,4.34545164,2607.5,2607.0,0.00575164]
[1739320747211,4.43336352,2607.2,2607.0,0.00575164]
[1739320747611,4.34545164,2607.5,2607.0,0.00575164]
[1739320747612,3.76765164,2607.5,2607.0,0.00575164]
[1739320747805,0.55985164,2607.5,2607.2,3.2078]
[1739320748005,4.0250445,2607.4,2607.2,3.2078]
[1739320750013,3.2078,2608.1,2607.2,9.2078]
[1739320750211,3.2078,2608.4,2607.6,3.15315526]
[1739320750415,4.3502709,2608.2,2607.7,0.5815]
[1739320750615,4.27540257,2608.3,2607.7,0.5815]
[1739320750914,6.36095526,2608.4,2607.7,0.5815]
[1739320751112,3.2078,2608.1,2607.7,0.5815]
[1739320751308,6.36095526,2608.1,2607.3,3.15315526]
[1739320751622,4.83420257,2608.0,2607.3,3.15315526]
[1739320752716,4.27540257,2608.0,2607.3,3.15315526]
[1739320754520,4.27540257,2608.0,2607.3,6.15115526]
[1739320755326,2.30635164,2608.3,2607.6,6.36095526]
[1739320755621,0.56935164,2608.3,2607.7,1.1494]
[1739320755817,0.56935164,2608.3,2607.7,1.7308]
[1739320756218,4.44104751,2608.2,2607.7,1.1588]
[1739320757514,4.44104751,2608.2,2608.0,3.2078]
[1739320757923,0.00575164,2608.3,2608.0,3.7798]
[1739320758225,0.00575164,2608.3,2608.2,3.15315526]
[1739320758619,0.00575164,2608.3,2608.0,3.2078]
[1739320759424,0.56185164,2608.3,2607.9,3.15315526]
[1739320760120,0.56185164,2608.3,2607.7,1.1588]
[1739320760121,3.2078,2608.0,2607.7,1.1588]
[1739320760319,0.767,2607.7,2607.3,6.36095526]
[1739320760525,0.767,2607.7,2607.3,3.2078]
[1739320760526,0.5561,2607.6,2607.3,3.2078]
[1739320760823,3.2078,2607.4,2607.0,0.00575164]
[1739320761022,3.15315526,2607.5,2607.0,0.00575164]
[1739320761023,3.97497,2607.1,2607.0,0.00575164]
[1739320761227,4.9448,2607.1,2606.4,6.36095526]
[1739320761429,0.7672,2607.0,2606.4,3.2078]
[1739320761632,3.2078,2606.7,2606.1,1.1293]
[1739320761819,3.97511,2606.7,2605.8,3.15315526]
[1739320762020,4.29505526,2606.9,2605.8,3.15315526]
[1739320762021,3.2078,2606.4,2605.8,3.15315526]
[1739320762221,3.2078,2605.9,2605.5,3.15315526]
[1739320762518,1.737,2606.4,2605.4,1.2067]
[1739320762519,3.2078,2605.8,2605.4,1.2067]
[1739320762723,3.2078,2605.5,2605.4,0.00575164]
[1739320763224,3.2078,2605.5,2604.6,3.15315526]
[1739320763225,3.97544,2605.5,2604.6,3.15315526]
[1739320763426,3.2078,2605.1,2604.3,6.36095526]
[1739320763630,8.09795526,2605.1,2604.3,6.36095526]
[1739320763828,8.09795526,2605.1,2604.3,3.15315526]
[1739320764030,4.08611118,2605.0,2604.3,3.15315526]
[1739320764227,3.2078,2604.6,2604.3,3.15315526]
[1739320764719,3.2078,2604.6,2604.0,3.15315526]
[1739320764926,3.2078,2604.3,2604.0,3.15315526]
[1739320765129,9.28879263,2604.5,2604.0,3.15315526]
[1739320765429,1.737,2604.5,2604.0,3.15315526]
[1739320765622,1.737,2604.5,2603.8,0.6001]
[1739320765623,1.737,2604.5,2603.9,4.05017286]
[1739320767126,3.2078,2604.3,2603.9,4.05017286]
[1739320767931,3.2078,2604.0,2603.9,4.05017286]
[1739320768329,4.9448,2604.5,2603.9,4.05017286]
[1739320768831,3.2078,2604.2,2603.9,4.05017286]
[1739320770732,1.737,2604.5,2603.9,4.05017286]
[1739320770733,4.9448,2604.5,2603.9,4.05017286]
[1739320772230,3.2078,2604.2,2603.6,4.05017286]
[1739320772431,3.2078,2604.2,2603.5,3.2078]
[1739320772432,3.2078,2603.9,2603.5,3.2078]
[1739320772728,4.9458,2603.9,2603.2,0.6082]
[1739320772930,4.9458,2603.9,2603.0,4.05017286]
[1739320772931,3.2078,2603.6,2603.0,4.05017286]
[1739320773140,3.2078,2603.6,2602.8,3.2078]
[1739320773438,4.19269724,2603.5,2602.8,3.2078]
[1739320773827,3.2078,2603.3,2602.7,4.60347286]
[1739320774828,3.2078,2603.0,2602.4,4.05017286]
[1739320775032,3.2078,2602.7,2602.1,0.5707]
[1739320775229,3.2078,2602.2,2601.6,0.90328836]
[1739320775532,3.2078,2602.2,2601.6,0.5877]
[1739320775835,3.2078,2601.8,2601.6,0.5877]
[1739320776033,3.2078,2601.8,2601.4,0.30976411]
[1739320776331,3.2078,2601.5,2601.4,0.30976411]
[1739320776527,3.2078,2601.5,2600.7,3.2078]
[1739320776832,3.2078,2601.5,2599.6,0.5827]
[1739320776833,3.2078,2600.8,2600.0,7.56197434]
[1739320777036,3.2078,2600.4,2600.0,4.05017286]
[1739320777433,0.00576269,2600.5,2600.3,4.05017286]
[1739320777638,4.9468,2601.2,2600.4,3.2078]
[1739320777838,3.2078,2601.5,2600.9,4.05017286]
[1739320778025,3.2078,2601.2,2600.6,4.05017286]
[1739320778539,3.2078,2601.2,2600.5,0.5773]
[1739320778727,3.2078,2600.9,2600.6,0.00576269]
[1739320779433,4.31612581,2600.8,2600.6,0.00576269]
[1739320779635,1.748,2600.7,2599.7,4.05017286]
[1739320779825,3.2078,2600.3,2599.7,4.05017286]
[1739320780132,0.00576269,2601.2,2600.2,3.2078]
[1739320780133,4.01828304,2600.6,2600.2,3.2078]
[1739320780430,0.00576269,2601.2,2600.5,7.25797286]
[1739320780831,0.00576269,2601.2,2600.3,5.02703701]
[1739320780832,3.21356269,2601.2,2600.3,5.02703701]
[1739320781031,3.21356269,2601.2,2600.2,4.05017286]
[1739320781238,3.2078,2600.9,2600.2,4.05017286]
[1739320781435,3.2078,2600.9,2600.1,1.1396]
[1739320781636,3.2078,2600.6,2600.1,1.1396]
[1739320781936,1.769,2601.1,2600.1,1.1396]
[1739320781937,3.2078,2600.9,2600.1,1.1396]
[1739320782441,3.2078,2600.6,2600.1,1.1396]
[1739320783136,4.24210872,2600.5,2599.6,4.05017286]
[1739320783343,3.2078,2600.1,2599.4,3.2078]
[1739320783533,10.06128158,2600.5,2599.3,4.05017286]
[1739320783534,3.2078,2599.7,2599.3,4.05017286]
[1739320783728,3.2078,2599.7,2599.1,3.2078]
[1739320784035,3.2078,2599.7,2599.0,5.22047286]
[1739320784238,3.21356269,2599.7,2599.0,5.22047286]
[1739320784826,3.21356269,2599.7,2598.9,9.11362694]
[1739320784827,3.2078,2599.3,2598.9,9.11362694]
[1739320785034,3.2078,2599.3,2598.7,4.05017286]
[1739320785542,3.21356269,2599.7,2599.0,4.05017286]
[1739320785733,0.00576269,2599.7,2598.9,3.2078]
[1739320786227,0.00576269,2599.7,2598.8,4.52279808]
[1739320786228,3.21356269,2599.7,2598.8,4.52279808]
[1739320786430,3.21356269,2599.7,2598.4,4.52279808]
[1739320786431,3.2078,2599.2,2598.4,4.52279808]
[1739320786638,3.2078,2598.9,2598.3,1.77]
[1739320786934,3.2078,2598.6,2598.1,1.1703]
[1739320787137,3.2078,2599.0,2598.1,4.3781]
[1739320787435,4.00920077,2598.9,2598.4,7.73059808]
[1739320787641,1.771,2599.3,2598.4,7.73059808]
[1739320787840,3.2078,2600.0,2598.8,7.73059808]
[1739320788138,0.76931,2599.9,2598.8,4.52279808]
[1739320788342,3.2078,2599.5,2598.8,4.52279808]
[1739320788546,3.2078,2599.5,2598.2,4.93288655]
[1739320788547,3.2078,2599.2,2598.4,7.73059808]
[1739320788744,0.76967,2598.7,2598.0,7.73059808]
[1739320788952,0.76958,2599.0,2598.0,7.73059808]
[1739320789243,3.2078,2599.2,2598.0,7.73059808]
[1739320789434,3.2078,2598.9,2598.0,7.73059808]
[1739320789639,3.2078,2598.5,2598.1,0.563]
[1739320789835,3.2078,2598.2,2597.6,7.73059808]
[1739320790043,0.76984,2598.1,2597.6,4.52279808]
[1739320790235,3.2078,2597.9,2597.6,4.52279808]
[1739320790438,3.2078,2597.9,2597.4,0.6139]
[1739320790945,3.97774,2597.8,2597.0,1.776]
[1739320791246,3.2078,2597.8,2596.9,0.5559]
[1739320791433,4.28264752,2598.1,2597.2,4.52279808]
[1739320791638,3.21357389,2598.2,2597.4,3.2078]
[1739320792339,3.21357389,2598.2,2597.7,3.2078]
[1739320792544,0.00577389,2598.2,2598.0,3.2078]
[1739320793140,0.00577389,2598.2,2597.7,0.5556]
[1739320793349,3.2078,2598.1,2597.7,0.5556]
[1739320793741,3.2078,2598.1,2597.4,1.783]
[1739320794350,0.00577389,2598.2,2597.6,4.52279808]
[1739320794944,3.2078,2598.1,2597.0,0.5556]
[1739320795155,3.2078,2597.5,2597.0,0.5556]
[1739320798445,3.2078,2597.2,2596.8,0.06849751]
[1739320798751,3.2078,2597.2,2596.5,9.12270076]
[1739320799048,3.978,2596.9,2596.2,0.5641]
[1739320799252,4.52279808,2596.6,2595.9,3.22287]
[1739320799551,3.2078,2596.0,2595.3,3.2078]
[1739320800148,3.2078,2596.0,2594.9,3.2078]
[1739320800443,1.802,2596.1,2594.9,3.2078]
[1739320800444,3.2078,2595.7,2594.9,3.2078]
[1739320800650,3.2078,2595.4,2594.9,3.2078]
[1739320800948,4.38399219,2595.6,2595.3,3.2078]
[1739320801149,3.2078,2596.3,2595.3,3.2078]
[1739320801646,3.2078,2595.4,2594.8,4.52279808]
[1739320801847,3.2078,2595.6,2595.5,0.01071293]
[1739320802057,3.2078,2595.6,2593.7,0.3856]
[1739320802058,4.18528734,2595.3,2593.6,7.73059808]
[1739320802347,3.2078,2594.9,2593.6,3.2078]
[1739320802549,0.00577389,2594.7,2593.9,3.2078]
[1739320803146,0.00577389,2594.7,2594.2,3.2078]
[1739320803344,0.00577389,2594.7,2594.0,4.52279808]
[1739320803345,3.2078,2596.1,2594.9,0.77077]
[1739320803545,0.5823,2596.3,2595.4,3.2078]
[1739320803743,0.5823,2596.3,2595.5,4.52279808]
[1739320803944,3.2078,2596.2,2595.1,7.73059808]
[1739320804242,3.2078,2596.1,2595.1,4.52279808]
[1739320804449,0.5823,2596.3,2595.4,3.2078]
[1739320804756,0.00577389,2596.0,2595.4,3.21357389]
[1739320805346,0.00577389,2596.0,2595.5,4.52279808]
[1739320806156,0.00577389,2596.0,2595.8,3.2078]
[1739320806652,3.2078,2596.2,2595.4,0.00577389]
[1739320807047,3.2078,2595.9,2595.4,0.00577389]
[1739320807951,3.2078,2595.6,2595.4,0.00577389]
[1739320808249,4.36951214,2595.5,2594.4,0.5849]
[1739320808452,3.2078,2595.0,2594.3,9.12985049]
[1739320809249,4.32484816,2594.9,2593.7,5.1118]
[1739320809550,4.32484816,2594.9,2594.4,0.00577389]
[1739320809551,3.2078,2594.9,2594.4,0.00577389]
[1739320810058,3.21357389,2594.9,2594.4,0.00577389]
[1739320811249,3.2078,2594.6,2594.4,0.00577389]
[1739320811459,3.97868,2594.6,2594.4,0.00577389]
[1739320811649,3.97868,2594.6,2593.6,0.5565]
[1739320811853,3.2078,2594.2,2593.6,0.5565]
[1739320812047,3.2078,2594.2,2593.1,9.63759808]
[1739320812352,3.2078,2594.2,2593.5,3.2078]
[1739320812549,3.2078,2594.2,2593.2,8.16801183]
[1739320812550,4.37525414,2594.1,2593.2,8.16801183]
[1739320812750,3.2078,2594.2,2593.2,3.2078]
[1739320813147,6.12301064,2594.1,2593.2,3.2078]
[1739320813346,3.2078,2593.4,2592.7,9.13426483]
[1739320813557,3.2078,2592.9,2592.3,3.2078]
[1739320813750,4.52279808,2593.1,2591.3,3.2078]
[1739320813751,3.2078,2592.5,2591.3,3.2078]
[1739320814261,3.2078,2591.9,2591.4,5.11759129]
[1739320814560,3.2078,2592.6,2591.6,3.2078]
[1739320814751,4.11343586,2592.7,2591.8,3.2078]
[1739320814948,0.00578514,2592.9,2592.2,3.2078]
[1739320815352,0.00578514,2592.9,2592.3,4.91980111]
[1739320815760,0.00578514,2592.9,2592.2,5.1548]
[1739320816352,3.2078,2592.5,2591.7,0.6002]
[1739320817146,3.2078,2592.5,2591.3,3.2078]
[1739320817346,3.2078,2592.2,2591.6,3.2078]
[1739320817559,3.2078,2592.2,2591.3,3.2078]
[1739320817754,3.2078,2591.9,2591.0,9.14091585]
[1739320817959,3.2078,2591.8,2590.8,4.59010265]
[1739320818163,7.29161969,2591.8,2591.1,3.2078]
[1739320818458,3.96682739,2592.6,2591.1,3.2078]
[1739320818459,3.2078,2592.1,2591.1,3.2078]
[1739320818654,3.2078,2591.7,2591.1,3.2078]
[1739320818855,3.21358514,2591.7,2590.9,3.2078]
[1739320819048,3.21358514,2591.7,2590.8,0.06730457]
[1739320819255,3.2078,2591.4,2590.6,3.2078]
[1739320819455,0.00578514,2591.7,2589.2,7.73059808]
[1739320819456,3.2078,2590.8,2589.2,7.73059808]
[1739320819657,3.2078,2590.4,2589.2,7.73059808]
[1739320819952,4.24707016,2590.7,2590.2,3.2078]
[1739320820260,4.24707016,2591.5,2590.6,3.2078]
[1739320820553,3.2078,2591.7,2590.6,3.2078]
[1739320820853,0.31169578,2593.2,2590.6,3.2078]
[1739320820854,1.996,2592.8,2591.6,7.73059808]
[1739320821060,0.6025,2593.1,2592.6,3.2078]
[1739320821250,1.997,2593.9,2592.9,3.2078]
[1739320821454,3.2078,2593.7,2592.9,3.2078]
[1739320821654,0.00578514,2593.1,2592.9,0.77137]
[1739320821959,3.8103,2594.2,2593.0,3.2078]
[1739320822158,3.8103,2594.2,2593.3,3.2078]